bitfinex-derivatives/quotes_BTCF0:USTF0_20250903
["timestamp","ask_amount","ask_price","bid_price","bid_amount"]
[1756889227947,1.24928344,111130.0,111120.0,0.0001]
[1756889228149,1.92535855,111130.0,111120.0,0.0001]
[1756889228742,0.91564813,111130.0,111120.0,0.0001]
[1756889229051,1.96535855,111130.0,111120.0,0.0001]
[1756889229437,2.05369305,111130.0,111120.0,0.0001]
[1756889229637,1.79081141,111130.0,111120.0,0.0001]
[1756889231046,1.79077141,111130.0,111120.0,0.0001]
[1756889231553,1.75077141,111130.0,111120.0,0.02445]
[1756889232448,0.61485141,111130.0,111120.0,0.04735]
[1756889232743,0.33593418,111130.0,111120.0,0.08293]
[1756889232957,1.11333808,111130.0,111120.0,0.08293]
[1756889233145,0.28745808,111130.0,111120.0,0.08293]
[1756889233449,0.28745808,111130.0,111120.0,0.46293]
[1756889233648,1.11333808,111130.0,111120.0,0.46293]
[1756889238153,1.11333808,111130.0,111120.0,0.29735]
[1756889238154,1.37601972,111130.0,111120.0,0.29735]
[1756889238347,1.77449582,111130.0,111120.0,0.0001]
[1756889241152,1.98870136,111130.0,111120.0,0.0001]
[1756889242255,1.72601972,111130.0,111120.0,0.0001]
[1756889242455,1.98870136,111130.0,111120.0,0.0001]
[1756889242643,2.05341305,111130.0,111120.0,0.0001]
[1756889242847,1.79073141,111130.0,111120.0,0.0001]
[1756889245353,2.05341305,111130.0,111120.0,0.0001]
[1756889247962,2.41723039,111130.0,111120.0,0.0001]
[1756889249358,2.48185289,111130.0,111120.0,0.0001]
[1756889249555,2.40096328,111130.0,111110.0,0.00449]
[1756889249745,0.78804492,111120.0,111110.0,0.00449]
[1756889249946,1.96646136,111120.0,111110.0,0.00449]
[1756889251359,1.14082136,111120.0,111110.0,0.00449]
[1756889251561,1.96646136,111120.0,111110.0,0.00449]
[1756889251863,1.96646136,111120.0,111110.0,0.08732]
[1756889252762,2.01491386,111120.0,111110.0,0.08732]
[1756889253654,2.01491386,111120.0,111110.0,0.05174]
[1756889253855,1.96646136,111120.0,111110.0,0.05174]
[1756889256164,1.96646136,111120.0,111110.0,0.02884]
[1756889256365,2.01491386,111120.0,111110.0,0.02884]
[1756889257363,2.01491386,111120.0,111110.0,0.00449]
[1756889257963,2.01491386,111120.0,111110.0,0.05174]
[1756889258165,0.89686894,111120.0,111110.0,0.08732]
[1756889258367,2.05491386,111120.0,111110.0,0.08732]
[1756889259265,1.22927386,111120.0,111110.0,0.08732]
[1756889259565,1.68483386,111120.0,111110.0,0.08732]
[1756889261162,1.68483386,111120.0,111110.0,0.08283]
[1756889263968,1.68475386,111120.0,111110.0,0.08283]
[1756889264167,1.42207222,111120.0,111110.0,0.08283]
[1756889264767,0.59659222,111120.0,111110.0,0.08283]
[1756889264970,0.54813972,111120.0,111110.0,0.33283]
[1756889265268,1.37361972,111120.0,111110.0,0.33283]
[1756889268273,1.42207222,111120.0,111110.0,0.33283]
[1756889268470,1.42207222,111120.0,111110.0,0.33293]
[1756889271872,1.42207222,111120.0,111110.0,0.29735]
[1756889272065,1.21927386,111120.0,111110.0,0.02445]
[1756889272266,2.04463386,111120.0,111110.0,0.0001]
[1756889273871,3.12143386,111120.0,111110.0,0.08449]
[1756889274064,3.32411222,111120.0,111110.0,0.08449]
[1756889274466,3.32407222,111120.0,111110.0,0.08449]
[1756889274880,3.32407222,111120.0,111110.0,0.04716]
[1756889275766,3.32407222,111120.0,111110.0,0.08449]
[1756889276976,3.32407222,111120.0,111110.0,0.04716]
[1756889277772,3.32407222,111120.0,111110.0,0.08449]
[1756889279778,3.32407222,111120.0,111110.0,0.04716]
[1756889280179,3.32407222,111120.0,111110.0,0.08449]
[1756889282576,3.32407222,111120.0,111110.0,0.02264]
[1756889282877,3.34024222,111120.0,111110.0,0.02264]
[1756889283072,3.34024222,111120.0,111110.0,0.08449]
[1756889285382,3.34024222,111120.0,111110.0,0.04716]
[1756889285572,3.34024222,111120.0,111110.0,0.0001]
[1756889285774,3.34024222,111120.0,111110.0,0.0046]
[1756889286079,3.60292386,111120.0,111110.0,0.0046]
[1756889286583,3.93677908,111120.0,111110.0,0.0046]
[1756889289482,3.84921374,111120.0,111110.0,0.0046]
[1756889289781,3.84921374,111120.0,111110.0,0.05166]
[1756889291784,3.49921374,111120.0,111110.0,0.05166]
[1756889291984,3.49921374,111120.0,111110.0,0.08847]
[1756889292778,3.45073602,111120.0,111110.0,0.08847]
[1756889295284,3.45073602,111120.0,111110.0,0.05166]
[1756889296494,3.83921374,111120.0,111110.0,0.05166]
[1756889297792,1.93705374,111120.0,111110.0,0.05166]
[1756889297994,1.93705374,111120.0,111110.0,0.0046]
[1756889299386,1.88857602,111120.0,111110.0,0.0046]
[1756889299591,1.93705374,111120.0,111110.0,0.0046]
[1756889301790,1.93705374,111120.0,111110.0,0.02753]
[1756889301992,1.93705374,111120.0,111110.0,0.0046]
[1756889302196,1.93705374,111120.0,111110.0,0.05234]
[1756889303190,1.11173374,111120.0,111110.0,0.05234]
[1756889303395,1.24637395,111120.0,111110.0,0.08915]
[1756889303693,0.42149395,111120.0,111110.0,0.08915]
[1756889303895,0.89609416,111120.0,111110.0,0.08915]
[1756889304089,0.42149395,111120.0,111110.0,0.08915]
[1756889304290,1.24633395,111120.0,111110.0,0.08915]
[1756889305495,1.24633395,111120.0,111110.0,0.08465]
[1756889306796,1.24633395,111120.0,111110.0,0.08915]
[1756889308699,0.42149395,111120.0,111110.0,0.08915]
[1756889308892,1.24625395,111120.0,111110.0,0.08915]
[1756889310301,0.42149395,111120.0,111110.0,0.08915]
[1756889310597,1.24621395,111120.0,111110.0,0.44915]
[1756889311699,1.24635627,111120.0,111110.0,0.44915]
[1756889314201,1.24635627,111120.0,111110.0,0.39915]
[1756889315800,1.24635627,111120.0,111110.0,0.40915]
[1756889316100,1.24635627,111120.0,111110.0,0.46915]
[1756889316803,1.24635627,111120.0,111110.0,0.08915]
[1756889317804,1.24627627,111120.0,111110.0,0.42915]
[1756889318100,1.19779855,111120.0,111110.0,0.42915]
[1756889319907,1.19779855,111120.0,111110.0,0.08915]
[1756889320204,0.37315855,111120.0,111110.0,0.08915]
[1756889320405,1.19771855,111120.0,111110.0,0.08915]
[1756889322307,1.19767855,111120.0,111110.0,0.08915]
[1756889323711,1.19763855,111120.0,111110.0,0.08915]
[1756889324308,0.37315855,111120.0,111110.0,0.08915]
[1756889324509,1.19763855,111120.0,111110.0,0.08915]
[1756889325206,0.37315855,111120.0,111110.0,0.08915]
[1756889325402,0.37315855,111120.0,111110.0,0.05234]
[1756889325601,1.19763855,111120.0,111110.0,0.05234]
[1756889326412,1.19763855,111120.0,111110.0,0.02753]
[1756889327811,1.19763855,111120.0,111110.0,0.05215]
[1756889328713,1.24611627,111120.0,111110.0,0.05215]
[1756889330104,1.24611627,111120.0,111110.0,0.0046]
[1756889330611,1.97635606,111120.0,111110.0,0.0046]
[1756889331618,1.59635606,111120.0,111110.0,0.0046]
[1756889331808,1.91635606,111120.0,111110.0,0.0046]
[1756889332814,1.93250084,111120.0,111110.0,0.0046]
[1756889336917,1.96250084,111120.0,111110.0,0.0046]
[1756889342823,1.94635755,111120.0,111110.0,0.0046]
[1756889343219,1.59635755,111120.0,111110.0,0.0046]
[1756889343419,1.24611776,111120.0,111110.0,0.0046]
[1756889343622,1.93635755,111120.0,111110.0,0.0046]
[1756889344323,1.59635755,111120.0,111110.0,0.0046]
[1756889345223,1.97635755,111120.0,111110.0,0.0046]
[1756889351427,1.80123761,111120.0,111110.0,0.0046]
[1756889352227,2.06391743,111120.0,111110.0,0.0046]
[1756889353034,2.06391743,111120.0,111110.0,0.0001]
[1756889354329,2.06391743,111120.0,111110.0,0.0046]
[1756889354726,2.06339743,111120.0,111110.0,0.0046]
[1756889356832,1.23943743,111120.0,111110.0,0.0046]
[1756889357033,2.06331743,111120.0,111110.0,0.0046]
[1756889363445,1.68331743,111120.0,111110.0,0.0046]
[1756889363642,2.05331743,111120.0,111110.0,0.0046]
[1756889366245,2.05331743,111120.0,111110.0,0.02807]
[1756889367645,1.68331743,111120.0,111110.0,0.02807]
[1756889367844,2.03331743,111120.0,111110.0,0.02807]
[1756889368149,1.68331743,111120.0,111110.0,0.02807]
[1756889368350,2.00331743,111120.0,111110.0,0.02807]
[1756889369848,3.90547743,111120.0,111110.0,0.02807]
[1756889371851,3.58547743,111120.0,111110.0,0.02807]
[1756889372052,3.89547743,111120.0,111110.0,0.02807]
[1756889372850,3.91162072,111120.0,111110.0,0.02807]
[1756889373851,3.91162072,111120.0,111110.0,0.0046]
[1756889374748,3.08774072,111120.0,111110.0,0.0046]
[1756889375049,4.35128912,111120.0,111110.0,0.0046]
[1756889375248,4.35128912,111120.0,111110.0,0.0001]
[1756889375249,3.44687951,111120.0,111110.0,0.0001]
[1756889375449,4.27039951,111120.0,111110.0,0.0001]
[1756889376852,4.20571483,111120.0,111110.0,0.0001]
[1756889377449,3.98571483,111120.0,111110.0,0.0001]
[1756889377649,4.25571483,111120.0,111110.0,0.0001]
[1756889377953,4.32039951,111120.0,111110.0,0.0001]
[1756889379154,4.25571483,111120.0,111110.0,0.0001]
[1756889380455,4.25563483,111120.0,111110.0,0.0001]
[1756889382252,3.43219483,111120.0,111110.0,0.0001]
[1756889382457,4.25563483,111120.0,111110.0,0.0001]
[1756889382953,4.30409014,111120.0,111110.0,0.0001]
[1756889385263,4.25563483,111120.0,111110.0,0.0001]
[1756889389664,3.43219483,111120.0,111110.0,0.0001]
[1756889389864,4.25543483,111120.0,111110.0,0.0001]
[1756889392466,4.32011951,111120.0,111110.0,0.0001]
[1756889395667,3.49687951,111120.0,111110.0,0.02328]
[1756889395967,4.32003951,111120.0,111110.0,0.02328]
[1756889399261,4.07003951,111120.0,111110.0,0.02328]
[1756889400670,4.07003951,111120.0,111110.0,0.0001]
[1756889402466,4.07003951,111120.0,111110.0,0.02328]
[1756889403172,4.00535483,111120.0,111110.0,0.02328]
[1756889404273,4.08624444,111120.0,111110.0,0.02328]
[1756889410771,4.08624444,111120.0,111110.0,0.0001]
[1756889410977,4.08624444,111120.0,111100.0,0.068]
[1756889411176,0.59001452,111110.0,111100.0,0.068]
[1756889411480,0.98293328,111110.0,111100.0,0.10315]
[1756889411872,0.61293328,111110.0,111100.0,0.09865]
[1756889412179,0.96308587,111110.0,111100.0,0.10065]
[1756889412478,0.97231847,111110.0,111100.0,0.10065]
[1756889412874,0.97231847,111110.0,111100.0,0.09965]
[1756889413182,1.79503847,111110.0,111100.0,0.10065]
[1756889413578,1.62003123,111110.0,111100.0,0.10065]
[1756889416272,1.59003123,111110.0,111100.0,0.10065]
[1756889419582,1.59003123,111110.0,111100.0,0.0655]
[1756889420184,1.59003123,111110.0,111100.0,0.10065]
[1756889422884,1.52537635,111110.0,111100.0,0.10065]
[1756889423084,1.60626596,111110.0,111100.0,0.10065]
[1756889423477,1.66626596,111110.0,111100.0,0.10065]
[1756889427289,1.66631564,111110.0,111100.0,0.10065]
[1756889427490,3.56875564,111110.0,111100.0,0.10065]
[1756889428690,3.48786603,111110.0,111100.0,0.0655]
[1756889430891,3.55248028,111110.0,111100.0,0.0655]
[1756889431092,3.48786603,111110.0,111100.0,0.0656]
[1756889432193,3.56875564,111110.0,111100.0,0.0656]
[1756889432990,3.55247104,111110.0,111100.0,0.0656]
[1756889433695,3.55247104,111110.0,111100.0,0.10075]
[1756889434596,2.34975104,111110.0,111100.0,0.10075]
[1756889434796,3.51207104,111110.0,111100.0,0.10075]
[1756889435204,3.51207104,111110.0,111100.0,0.0656]
[1756889442505,2.68975104,111110.0,111100.0,0.0656]
[1756889442694,3.51195104,111110.0,111100.0,0.0656]
[1756889444302,3.51195104,111110.0,111100.0,0.0414]
[1756889444905,3.51195104,111110.0,111100.0,0.06532]
[1756889446506,2.34975104,111110.0,111100.0,0.06532]
[1756889446706,3.50187104,111110.0,111100.0,0.06532]
[1756889447409,3.17187104,111110.0,111100.0,0.06532]
[1756889447597,3.50187104,111110.0,111100.0,0.06532]
[1756889447803,3.50187104,111110.0,111100.0,0.1013]
[1756889448107,3.54187104,111110.0,111100.0,0.1013]
[1756889448403,3.54187104,111110.0,111100.0,0.06532]
[1756889449707,3.17187104,111110.0,111100.0,0.06532]
[1756889449911,3.49187104,111110.0,111100.0,0.06532]
[1756889450307,3.17187104,111110.0,111100.0,0.06532]
[1756889450509,3.50187104,111110.0,111100.0,0.06532]
[1756889451309,2.65975104,111110.0,111100.0,0.06532]
[1756889451509,3.48179104,111110.0,111100.0,0.06532]
[1756889453404,2.34975104,111110.0,111100.0,0.06532]
[1756889453610,3.53179104,111110.0,111100.0,0.06532]
[1756889462912,3.59695564,111110.0,111100.0,0.01667659]
[1756889463812,3.59695564,111110.0,111100.0,0.04126659]
[1756889464719,3.23695564,111110.0,111100.0,0.04126659]
[1756889464914,3.60695564,111110.0,111100.0,0.04126659]
[1756889466222,3.60695564,111110.0,111100.0,0.02459]
[1756889467019,3.58383461,111110.0,111100.0,0.02459]
[1756889467221,3.502945,111110.0,111100.0,0.02459]
[1756889468518,3.60662543,111110.0,111100.0,0.02459]
[1756889468924,3.60662543,111110.0,111100.0,0.06336]
[1756889470220,3.23662543,111110.0,111100.0,0.06336]
[1756889470421,3.58662543,111110.0,111100.0,0.06336]
[1756889472933,3.65123296,111110.0,111100.0,0.06336]
[1756889473225,3.57047355,111110.0,111100.0,0.06336]
[1756889473426,3.74563053,111110.0,111100.0,0.06336]
[1756889474429,2.57359053,111110.0,111100.0,0.06336]
[1756889474628,3.72531053,111110.0,111100.0,0.06336]
[1756889477227,0.06529,111100.0,111090.0,0.0893]
[1756889477421,0.63925677,111100.0,111090.0,0.0893]
[1756889477626,0.66217779,111100.0,111090.0,0.0848]
[1756889478035,0.92493248,111100.0,111090.0,0.0848]
[1756889478332,0.92493248,111100.0,111090.0,0.0868]
[1756889478536,0.92493248,111100.0,111090.0,0.0933]
[1756889482736,1.24493248,111100.0,111090.0,0.0085]
[1756889483031,1.19647509,111100.0,111090.0,0.0086]
[1756889484234,1.24489132,111100.0,111090.0,0.0086]
[1756889484932,1.26108262,111100.0,111090.0,0.0086]
[1756889485134,1.19647509,111100.0,111090.0,0.0086]
[1756889485434,1.26108262,111100.0,111090.0,0.0086]
[1756889486030,1.19647509,111100.0,111090.0,0.0086]
[1756889491433,1.26108262,111100.0,111090.0,0.0086]
[1756889492436,1.35603949,111100.0,111090.0,0.0086]
[1756889494236,1.29143196,111100.0,111090.0,0.0086]
[1756889495927,1.35603949,111100.0,111090.0,0.0086]
[1756889497036,1.35703949,111100.0,111090.0,0.0066]
[1756889497532,1.35703949,111100.0,111090.0,0.0021]
[1756889497737,1.35703949,111100.0,111090.0,0.08473]
[1756889497738,2.17847949,111100.0,111090.0,0.08473]
[1756889498040,2.11587196,111100.0,111090.0,0.04892]
[1756889498238,2.18047949,111100.0,111090.0,0.04892]
[1756889504443,1.35903949,111100.0,111090.0,0.04892]
[1756889504647,2.18039949,111100.0,111090.0,0.04892]
[1756889508448,2.18039949,111100.0,111090.0,0.02434]
[1756889508847,2.18039949,111100.0,111090.0,0.0001]
[1756889512950,2.09863196,111100.0,111080.0,0.03831]
[1756889513151,0.65452721,111090.0,111080.0,0.08669]
[1756889513353,1.00744823,111090.0,111080.0,0.08669]
[1756889514646,2.91008823,111090.0,111080.0,0.08669]
[1756889518257,2.8455104,111090.0,111080.0,0.08669]
[1756889519066,2.5155104,111090.0,111080.0,0.08669]
[1756889519265,2.58009766,111090.0,111080.0,0.08669]
[1756889519564,2.95009766,111090.0,111080.0,0.08669]
[1756889520765,2.95009766,111090.0,111080.0,0.08219]
[1756889521963,2.95009766,111090.0,111080.0,0.08669]
[1756889522964,2.9339785,111090.0,111080.0,0.08669]
[1756889525066,2.9339785,111090.0,111080.0,0.05288]
[1756889525268,2.9339785,111090.0,111080.0,0.08749]
[1756889525467,2.9339785,111090.0,111080.0,0.05288]
[1756889525766,2.9339785,111090.0,111080.0,0.08749]
[1756889526970,2.9339785,111090.0,111080.0,0.05288]
[1756889527267,2.9339785,111090.0,111080.0,0.0045]
[1756889527462,3.19673319,111090.0,111080.0,0.0045]
[1756889529868,3.7348985,111090.0,111080.0,0.0045]
[1756889531472,3.83224371,111090.0,111080.0,0.0045]
[1756889531659,3.83224371,111090.0,111080.0,0.0046]
[1756889531859,4.0949984,111090.0,111080.0,0.0046]
[1756889532970,4.0465303,111090.0,111080.0,0.0046]
[1756889535472,3.95924335,111090.0,111080.0,0.0046]
[1756889537468,3.60924335,111090.0,111080.0,0.0046]
[1756889537775,3.91924335,111090.0,111080.0,0.0046]
[1756889539274,3.98383061,111090.0,111080.0,0.0046]
[1756889539469,3.91924335,111090.0,111080.0,0.0046]
[1756889540174,3.98383061,111090.0,111080.0,0.0046]
[1756889541175,3.98383061,111090.0,111080.0,0.0001]
[1756889542668,3.16291061,111090.0,111080.0,0.0001]
[1756889542869,3.98367061,111090.0,111080.0,0.0001]
[1756889544373,3.9190887,111090.0,111080.0,0.0001]
[1756889549764,3.9190887,111090.0,111080.0,0.02451]
[1756889550279,3.9190887,111090.0,111080.0,0.0001]
[1756889552280,3.89616233,111090.0,111080.0,0.0001]
[1756889552479,3.91908591,111090.0,111080.0,0.0001]
[1756889552781,3.91896591,111090.0,111080.0,0.02451]
[1756889552968,3.98355317,111090.0,111080.0,0.02451]
[1756889554174,3.91896591,111090.0,111080.0,0.02451]
[1756889554370,3.17908532,111090.0,111080.0,0.02451]
[1756889554570,3.24185155,111090.0,111080.0,0.33284]
[1756889554770,3.16109214,111090.0,111080.0,0.33284]
[1756889554976,2.34049214,111090.0,111080.0,0.33284]
[1756889555373,3.16109214,111090.0,111080.0,0.33284]
[1756889556176,2.34049214,111090.0,111080.0,0.33284]
[1756889556377,3.16105214,111090.0,111080.0,0.33284]
[1756889559380,3.20947784,111090.0,111080.0,0.33284]
[1756889560781,2.38891784,111090.0,111080.0,0.33284]
[1756889560973,3.20939784,111090.0,111080.0,0.33284]
[1756889561480,2.38891784,111090.0,111080.0,0.33284]
[1756889561674,3.20939784,111090.0,111080.0,0.33734]
[1756889562876,3.16097214,111090.0,111080.0,0.33734]
[1756889564483,2.34049214,111090.0,111080.0,0.68734]
[1756889564681,1.99000358,111090.0,111080.0,0.67734]
[1756889564878,2.79328358,111090.0,111080.0,0.33734]
[1756889565074,3.14377214,111090.0,111080.0,0.35734]
[1756889565273,3.14377214,111090.0,111080.0,0.33734]
[1756889565487,3.16093214,111090.0,111080.0,0.69734]
[1756889565784,3.16093214,111090.0,111080.0,0.35734]
[1756889566185,3.16093214,111090.0,111080.0,0.33734]
[1756889566986,3.16093214,111090.0,111080.0,0.3019]
[1756889567388,3.16093214,111090.0,111080.0,0.33586]
[1756889572694,2.34049214,111090.0,111080.0,0.33586]
[1756889573096,3.16077214,111090.0,111080.0,0.33586]
[1756889579199,3.16077214,111090.0,111080.0,0.0519]
[1756889581198,3.16077214,111090.0,111080.0,0.08586]
[1756889581802,3.16077214,111090.0,111080.0,0.0046]
[1756889582189,3.16077214,111090.0,111080.0,0.05187]
[1756889582393,3.16077214,111090.0,111080.0,0.08583]
[1756889582394,2.34049214,111090.0,111080.0,0.08583]
[1756889582596,3.16065214,111090.0,111080.0,0.08583]
[1756889582792,3.16065214,111090.0,111080.0,0.05187]
[1756889590803,3.16065214,111090.0,111080.0,0.08848]
[1756889593098,3.16065214,111090.0,111080.0,0.05187]
[1756889595607,3.33574174,111090.0,111080.0,0.05187]
[1756889600220,3.33574174,111090.0,111080.0,0.02919]
[1756889601123,3.33574174,111090.0,111080.0,0.0046]
[1756889602019,3.65574174,111090.0,111080.0,0.0046]
[1756889602322,3.70416744,111090.0,111070.0,0.02101454]
[1756889602522,0.57831816,111080.0,111070.0,0.04523454]
[1756889602724,0.60124174,111080.0,111070.0,0.06889454]
[1756889602924,0.64966744,111080.0,111070.0,0.06889454]
[1756889603126,0.64966744,111080.0,111070.0,0.10550454]
[1756889603722,0.12408928,111080.0,111070.0,0.10550454]
[1756889604025,0.64966744,111080.0,111070.0,0.10650454]
[1756889604229,0.64966744,111080.0,111070.0,0.10750454]
[1756889604415,0.64966744,111080.0,111070.0,0.07089454]
[1756889604815,0.12408928,111080.0,111070.0,0.07089454]
[1756889605122,1.46954744,111080.0,111070.0,0.10750454]
[1756889605524,1.46954744,111080.0,111070.0,0.12750454]
[1756889607329,1.42112174,111080.0,111070.0,0.12750454]
[1756889608129,1.42112174,111080.0,111070.0,0.07089454]
[1756889609632,1.42112174,111080.0,111070.0,0.10750454]
[1756889616635,0.60124174,111080.0,111070.0,0.10750454]
[1756889616827,1.42108174,111080.0,111070.0,0.10750454]
[1756889618137,1.42108174,111080.0,111070.0,0.07089454]
[1756889618138,1.42104174,111080.0,111070.0,0.07089454]
[1756889619038,0.60124174,111080.0,111070.0,0.07089454]
[1756889619242,1.42104174,111080.0,111070.0,0.04988]
[1756889619438,1.42104174,111080.0,111070.0,0.07073041]
[1756889621040,1.42104174,111080.0,111070.0,0.10549041]
[1756889621346,1.42104174,111080.0,111070.0,0.10559041]
[1756889622644,0.60124174,111080.0,111070.0,0.10559041]
[1756889622838,1.42100174,111080.0,111070.0,0.10610573]
[1756889623037,1.42100174,111080.0,111070.0,0.07134573]
[1756889624144,1.42100174,111080.0,111070.0,0.04768573]
[1756889625739,1.42100174,111080.0,111070.0,0.02346573]
[1756889628946,1.42100174,111080.0,111070.0,0.04635573]
[1756889630043,1.42100174,111080.0,111070.0,0.02346573]
[1756889632049,1.49268344,111080.0,111070.0,0.02346573]
[1756889634944,1.49268344,111080.0,111070.0,0.0021]
[1756889643554,0.67292344,111080.0,111070.0,0.0021]
[1756889643754,1.49248344,111080.0,111070.0,0.04838]
[1756889643957,1.49248344,111080.0,111070.0,0.08314]
[1756889644355,1.49248344,111080.0,111070.0,0.04838]
[1756889653760,0.96690528,111080.0,111070.0,0.04838]
[1756889653962,0.19577098,111080.0,111070.0,0.0825]
[1756889654162,1.22957436,111080.0,111070.0,0.97528908]
[1756889654758,1.49236344,111080.0,111070.0,0.7125]
[1756889655568,1.31716055,111080.0,111070.0,0.7125]
[1756889659668,1.66543582,111080.0,111050.0,1.2787266]
[1756889659870,0.35037527,111060.0,111050.0,0.4765366]
[1756889660171,1.20949885,111060.0,111050.0,0.4810366]
[1756889660377,1.20949885,111060.0,111050.0,1.6910366]
[1756889660965,0.85912358,111060.0,111050.0,1.6910366]
[1756889661562,0.85912358,111060.0,111050.0,0.4810366]
[1756889661974,0.85912358,111060.0,111050.0,0.4840366]
[1756889662176,0.85904358,111060.0,111050.0,0.4840366]
[1756889662370,0.85904358,111060.0,111050.0,0.4870366]
[1756889663074,0.83612,111060.0,111050.0,0.4870366]
[1756889663574,0.85805995,111060.0,111050.0,0.4870366]
[1756889666079,0.83612,111060.0,111050.0,0.4870366]
[1756889666779,0.83612,111060.0,111050.0,0.4084]
[1756889667078,0.85805718,111060.0,111050.0,0.46596]
[1756889667279,1.20843245,111060.0,111050.0,0.46596]
[1756889669779,1.21889245,111060.0,111050.0,0.3705]
[1756889669988,0.86851718,111060.0,111050.0,0.46596]
[1756889670275,1.21889245,111060.0,111050.0,0.43184]
[1756889671670,1.21889245,111060.0,111050.0,0.46596]
[1756889672072,0.86851718,111060.0,111050.0,0.46596]
[1756889672270,1.21889245,111060.0,111050.0,0.46596]
[1756889674177,1.21889245,111060.0,111050.0,0.43184]
[1756889674484,1.21889245,111060.0,111050.0,0.4084]
[1756889674673,1.21889245,111060.0,111050.0,0.43184]
[1756889675479,1.21887998,111060.0,111050.0,0.46596]
[1756889676202,0.86850471,111060.0,111050.0,0.46596]
[1756889676394,1.21887998,111060.0,111050.0,0.46596]
[1756889676594,1.21887998,111060.0,111050.0,0.43184]
[1756889676797,1.21887998,111060.0,111050.0,0.46596]
[1756889677596,1.21887998,111060.0,111050.0,0.43184]
[1756889677797,1.21887998,111060.0,111050.0,0.46596]
[1756889681502,1.21887998,111060.0,111050.0,0.43184]
[1756889681800,1.21887998,111060.0,111050.0,0.43194]
[1756889682299,1.21887998,111060.0,111050.0,0.46802]
[1756889683096,1.21887998,111060.0,111050.0,0.43194]
[1756889683302,0.86850471,111060.0,111050.0,0.43194]
[1756889683494,1.21887998,111060.0,111050.0,0.43194]
[1756889684594,1.21887998,111060.0,111050.0,0.46802]
[1756889685090,1.21887998,111060.0,111050.0,0.43194]
[1756889685301,1.21887998,111060.0,111050.0,0.46802]
[1756889685903,1.21887998,111060.0,111050.0,0.43194]
[1756889686203,1.21887998,111060.0,111050.0,0.46802]
[1756889687305,0.86850471,111060.0,111050.0,0.46802]
[1756889687502,1.21887998,111060.0,111050.0,0.46802]
[1756889688502,1.21887998,111060.0,111050.0,0.43194]
[1756889688808,1.21887998,111060.0,111050.0,0.46802]
[1756889689606,1.21887998,111060.0,111050.0,0.43194]
[1756889690314,0.86850471,111060.0,111050.0,0.43194]
[1756889690507,1.21887998,111060.0,111050.0,0.43194]
[1756889692706,1.21887998,111060.0,111050.0,0.46802]
[1756889693007,1.26730568,111060.0,111050.0,0.46802]
[1756889694009,0.91693041,111060.0,111050.0,0.46802]
[1756889694208,1.26730568,111060.0,111050.0,0.46802]
[1756889695104,0.91693041,111060.0,111050.0,0.46802]
[1756889695309,1.26730568,111060.0,111050.0,0.46802]
[1756889695812,0.08081041,111060.0,111050.0,0.46802]
[1756889696006,0.73458471,111060.0,111050.0,0.46802]
[1756889698715,0.03238471,111060.0,111050.0,0.81839527]
[1756889698914,0.88122471,111060.0,111050.0,0.81839527]
[1756889699214,0.87076471,111060.0,111050.0,0.81839527]
[1756889700216,0.03238471,111060.0,111050.0,1.06839527]
[1756889700422,0.87040471,111060.0,111050.0,1.06839527]
[1756889701512,0.87040471,111060.0,111050.0,1.07734979]
[1756889703220,0.84848,111060.0,111050.0,1.07734979]
[1756889704028,0.84848,111060.0,111050.0,0.72697452]
[1756889704321,0.84848,111060.0,111050.0,1.07734979]
[1756889704913,0.84848,111060.0,111050.0,0.72697452]
[1756889705115,0.84848,111060.0,111050.0,1.07734979]
[1756889706123,0.0001,111070.0,111060.0,0.08449]
[1756889706317,0.03427676,111070.0,111060.0,0.75888527]
[1756889706521,0.8601,111070.0,111060.0,0.75888527]
[1756889706922,0.8601,111070.0,111060.0,0.79496527]
[1756889707217,0.8601,111070.0,111060.0,0.44909]
[1756889707422,0.8601,111070.0,111060.0,0.45109]
[1756889707623,0.8601,111070.0,111060.0,0.80346527]
[1756889707818,0.88391266,111070.0,111060.0,0.80346527]
[1756889710227,0.8601,111070.0,111060.0,0.80346527]
[1756889714230,0.01046,111070.0,111060.0,0.80346527]
[1756889714429,0.86034,111070.0,111060.0,0.45309]
[1756889717429,1.12312578,111070.0,111060.0,0.71587578]
[1756889718523,1.12312578,111070.0,111060.0,0.45309]
[1756889718727,1.12312578,111070.0,111060.0,0.71587578]
[1756889721035,1.12312578,111070.0,111060.0,0.45309]
[1756889721227,1.12312578,111070.0,111060.0,0.71587578]
[1756889732553,1.12312578,111070.0,111060.0,0.45309]
[1756889732851,1.12312578,111070.0,111060.0,0.71587578]
[1756889733546,1.1451486,111070.0,111060.0,0.71587578]
[1756889733753,1.12312578,111070.0,111060.0,0.71587578]
[1756889734153,1.1451508,111070.0,111060.0,0.71587578]
[1756889738657,0.88236502,111070.0,111060.0,0.71587578]
[1756889739156,1.1451508,111070.0,111060.0,0.71587578]
[1756889743259,0.88236502,111070.0,111060.0,0.71587578]
[1756889743462,1.1451508,111070.0,111060.0,0.71587578]
[1756889750272,0.2952708,111070.0,111060.0,0.71587578]
[1756889750474,1.1421108,111070.0,111060.0,0.71587578]
[1756889751471,0.2952708,111070.0,111060.0,0.71587578]
[1756889751667,1.1418308,111070.0,111060.0,0.71587578]
[1756889752068,0.87904502,111070.0,111060.0,0.71587578]
[1756889752268,1.1415108,111070.0,111060.0,0.71587578]
[1756889756967,1.1412708,111070.0,111060.0,0.71587578]
[1756889759272,1.1308108,111070.0,111060.0,0.71587578]
[1756889761079,1.13090357,111070.0,111060.0,0.71587578]
[1756889764683,1.13090357,111070.0,111060.0,0.45309]
[1756889764982,1.13090357,111070.0,111060.0,0.71587578]
[1756889766185,1.13090357,111070.0,111060.0,0.45309]
[1756889766384,1.14136357,111070.0,111060.0,0.41701]
[1756889766776,1.14136357,111070.0,111060.0,0.23701]
[1756889766976,1.14136357,111070.0,111060.0,0.23706]
[1756889767181,1.14136357,111070.0,111060.0,0.05706]
[1756889767676,1.14135765,111070.0,111060.0,0.05706]
[1756889767882,1.14135765,111070.0,111060.0,0.47227]
[1756889768586,1.14135765,111070.0,111060.0,0.09227]
[1756889769689,1.14135765,111070.0,111060.0,0.38227]
[1756889770090,1.14135765,111070.0,111060.0,0.40227]
[1756889770885,1.14135765,111070.0,111060.0,0.09227]
[1756889771089,1.14135765,111070.0,111060.0,0.05706]
[1756889771293,1.14135765,111070.0,111060.0,0.09426]
[1756889771592,1.14135765,111070.0,111060.0,0.40426]